fUST/lending_fUST_20260104
["ID","MTS","AMOUNT","RATE_DAILY","PERIOD"]
[400417198,1767533583596,276.95,8.484e-05,2]
[400417199,1767533584008,316.51,8.798e-05,2]
[400417200,1767533584615,356.08,9.113e-05,2]
[400417201,1767533585029,395.64,9.427e-05,2]
[400417204,1767533599917,1200.0,0.00010495,2]
[400417304,1767533642402,300.0,0.00010495,2]
[400417305,1767533649249,922.02991897,9.553e-05,2]
[400417306,1767533675222,1401.7608747,0.00010198,2]
[400417311,1767533706866,300.0,0.00010495,2]
[400417312,1767533707665,335.0,0.00010495,2]
[400417340,1767533762504,300.0,0.00010495,2]
[400417344,1767533773035,308.01030117,0.00010416,2]
[400417345,1767533773062,21.79355369,0.00010416,2]
[400417370,1767533809761,1026.86983591,9.552e-05,2]
[400417373,1767533816368,500.0,0.00010495,2]
[400417374,1767533816437,462.56821321,0.00010495,2]
[400417376,1767533827870,500.0,0.00010495,2]
[400417377,1767533827903,500.0,0.00010495,2]
[400417378,1767533827934,500.0,0.00010495,2]
[400417379,1767533827974,500.0,0.00010495,2]
[400417380,1767533828025,500.0,0.00010495,2]
[400417381,1767533828068,500.0,0.00010495,2]
[400417382,1767533828105,500.0,0.00010495,2]
[400417383,1767533828146,500.0,0.00010495,2]
[400417384,1767533828179,500.0,0.00010495,2]
[400417385,1767533828221,500.0,0.00010495,2]
[400417386,1767533828253,500.0,0.00010495,2]
[400417387,1767533828287,500.0,0.00010495,2]
[400417388,1767533828329,500.0,0.00010495,2]
[400417389,1767533828367,489.07552356,0.00010495,2]
[400417390,1767533828408,500.0,0.00010495,2]
[400417400,1767533852531,219.3080883,0.00010495,2]
[400417414,1767533900417,280.39478533,0.00010495,2]
[400417415,1767533900442,919.60521467,0.00010495,2]
[400417416,1767533915040,12442.0,0.00030136,120]
[400417417,1767533917411,-217.442454,0.00010496,2]
[400417418,1767533924568,217.442454,0.00010496,2]
[400417419,1767533930231,564.98946927,0.00010495,2]
[400417420,1767533933764,500.0,0.00010495,2]
[400417421,1767533933807,500.0,0.00010495,2]
[400417422,1767533933888,500.0,0.00010495,2]
[400417423,1767533933929,500.0,0.00010495,2]
[400417424,1767533933966,500.0,0.00010495,2]
[400417425,1767533934098,500.0,0.00010495,2]
[400417426,1767533934331,500.0,0.00010495,2]
[400417427,1767533934382,500.0,0.00010495,2]
[400417428,1767533934655,581.57032281,0.00010495,2]
[400417429,1767533934877,500.0,0.00010495,2]
[400417430,1767533934928,500.0,0.00010495,2]
[400417434,1767533959255,-500.0,0.00010495,2]
[400417435,1767533959287,-500.0,0.00010495,2]
[400417436,1767533959320,-257.09922596,0.00010495,2]
[400417437,1767533959817,-9578.32148299,0.00010496,2]
[400417438,1767533959861,-10000.01,0.00010496,2]
[400417439,1767533959878,-10000.01,0.00010496,2]
[400417440,1767533960017,-10000.01,0.00010496,2]
[400417441,1767533960219,-10000.01,0.00010496,2]
[400417451,1767533981220,-154.28699706,0.00010495,2]
[400417452,1767533981256,-500.0,0.00010495,2]
[400417453,1767533981291,-500.0,0.00010495,2]
[400417454,1767533981325,-300.0,0.00010495,2]
[400417455,1767533981360,-500.0,0.00010495,2]
[400417456,1767533981392,-500.0,0.00010495,2]
[400417457,1767533981425,-190.97543828,0.00010495,2]
[400417458,1767533985468,165.21,8.842e-05,2]
[400417459,1767533985866,198.26,9.196e-05,2]
[400417460,1767533986297,231.3,9.549e-05,2]
[400417461,1767533986721,264.34,9.903e-05,2]
[400417462,1767533987128,297.39,0.00010257,2]
[400417467,1767534001663,500.0,0.00010495,2]
[400417468,1767534001716,500.0,0.00010495,2]
[400417469,1767534001769,500.0,0.00010495,2]
[400417470,1767534001824,500.0,0.00010495,2]
[400417471,1767534001863,500.0,0.00010495,2]
[400417472,1767534001929,500.0,0.00010495,2]
[400417473,1767534001984,434.3611238,0.00010495,2]
[400417482,1767534039438,118.62400552,0.00010495,2]
[400417483,1767534039465,381.37599448,0.00010495,2]
[400417486,1767534039504,500.0,0.00010495,2]
[400417488,1767534039540,500.0,0.00010495,2]
[400417500,1767534056426,164.91,0.00010339,2]
[400417510,1767534062638,500.0,0.00010495,2]
[400417511,1767534062679,500.0,0.00010495,2]
[400417512,1767534062713,500.0,0.00010495,2]
[400417513,1767534062751,500.0,0.00010495,2]
[400417514,1767534062802,500.0,0.00010495,2]
[400417516,1767534062847,500.0,0.00010495,2]
[400417518,1767534062884,500.0,0.00010495,2]
[400417519,1767534062918,500.0,0.00010495,2]
[400417520,1767534062957,500.0,0.00010495,2]
[400417521,1767534062995,190.24484176,0.00010495,2]
[400417522,1767534063032,500.0,0.00010495,2]
[400417523,1767534063067,500.0,0.00010495,2]
[400417524,1767534063254,500.0,0.00010495,2]
[400417525,1767534063418,500.0,0.00010495,2]
[400417526,1767534063714,500.0,0.00010495,2]
[400417614,1767534200894,462.0,0.00030137,120]
[400417673,1767534499345,-800.0,0.00010255,2]
[400417674,1767534499382,-356.34226585,0.00010268,2]
[400417675,1767534499418,-800.0,0.0001028,2]
[400417676,1767534499454,-200.0,0.00010299,2]
[400417677,1767534499487,-1296.16667658,0.00010324,2]
[400417678,1767534499713,-3094.99211514,0.00010324,2]
[400417680,1767534501166,403.0,0.00010395,2]
[400417681,1767534507735,381.59568042,0.00010395,2]
[400417682,1767534513605,500.0,0.00010395,2]
[400417683,1767534513639,500.0,0.00010395,2]
[400417684,1767534513680,500.0,0.00010395,2]
[400417685,1767534513712,500.0,0.00010395,2]
[400417686,1767534513748,500.0,0.00010395,2]
[400417687,1767534513790,500.0,0.00010395,2]
[400417688,1767534513825,25.4300893,0.00010395,2]
[400417689,1767534513854,409.29853815,0.00010395,2]
[400417690,1767534514015,500.0,0.00010395,2]
[400417691,1767534514057,500.0,0.00010395,2]
[400417692,1767534521942,223.22078136,0.00010395,2]
[400417697,1767534530763,500.0,0.00010395,2]
[400417698,1767534530809,500.0,0.00010395,2]
[400417699,1767534530876,179.38627834,0.00010395,2]
[400417702,1767534538544,502.13169587,0.00010395,2]
[400417703,1767534542588,300.0,0.00010395,2]
[400417707,1767534559473,364.5852977,9.48e-05,2]
[400417718,1767534564484,500.0,0.00010395,2]
[400417719,1767534564520,500.0,0.00010395,2]
[400417720,1767534564554,500.0,0.00010395,2]
[400417721,1767534564588,500.0,0.00010395,2]
[400417722,1767534564620,500.0,0.00010395,2]
[400417723,1767534564753,500.0,0.00010395,2]
[400417724,1767534564801,500.0,0.00010395,2]
[400417725,1767534564840,500.0,0.00010395,2]
[400417726,1767534564888,500.0,0.00010395,2]
[400417727,1767534564923,500.0,0.00010395,2]
[400417728,1767534564979,500.0,0.00010395,2]
[400417729,1767534565041,500.0,0.00010395,2]
[400417730,1767534565087,21.38740858,0.00010395,2]
[400417731,1767534565114,478.61259142,0.00010395,2]
[400417732,1767534565254,500.0,0.00010395,2]
[400417733,1767534565394,500.0,0.00010395,2]
[400417734,1767534565447,500.0,0.00010395,2]
[400417735,1767534565498,500.0,0.00010395,2]
[400417736,1767534565586,500.0,0.00010395,2]
[400417738,1767534582282,500.0,0.00010395,2]
[400417739,1767534582338,500.0,0.00010395,2]
[400417740,1767534582393,258.90346992,0.00010395,2]
[400417741,1767534582633,500.0,0.00010395,2]
[400417742,1767534582683,500.0,0.00010395,2]
[400417743,1767534582720,500.0,0.00010395,2]
[400417744,1767534582821,500.0,0.00010395,2]
[400417745,1767534593445,166.23,7.909e-05,2]
[400417746,1767534593847,199.48,8.225e-05,2]
[400417747,1767534594251,232.73,8.541e-05,2]
[400417748,1767534594671,265.97,8.858e-05,2]
[400417749,1767534595072,299.22,9.174e-05,2]
[400417750,1767534595503,332.46,9.49e-05,2]
[400417753,1767534602369,300.0,0.00010395,2]
[400417760,1767534607802,1200.0,0.00010395,2]
[400417792,1767534632483,-1165.4489358,0.00010396,2]
[400417799,1767534638443,-1971.51095744,0.00010396,2]
[400417800,1767534638506,-996863.04010676,0.00010396,2]
[400417801,1767534638516,-566.0,0.00010396,2]
[400417802,1767534638526,-304.02245372,0.00010428,2]
[400417803,1767534638536,-800.0,0.00010448,2]
[400417804,1767534638545,-712.06243302,0.00010494,2]
[400417805,1767534638555,-52.62553398,0.00010536,2]
[400417806,1767534638564,-1869.61957884,0.00010678,2]
[400417807,1767534638574,-3684.4315562,0.00010737,2]
[400417808,1767534638583,-2405.10531393,0.00010762,2]
[400417809,1767534638593,-7591.27989935,0.00010911,2]
[400417810,1767534638603,-300.0,0.00010911,2]
[400417811,1767534638613,-300.0,0.00010911,2]
[400417812,1767534638623,-300.0,0.00010911,2]
[400417813,1767534638634,-300.0,0.00010911,2]
[400417814,1767534638644,-300.0,0.00010911,2]
[400417815,1767534638653,-300.0,0.00010911,2]
[400417816,1767534638663,-300.0,0.00010911,2]
[400417817,1767534638672,-300.0,0.00010911,2]
[400417818,1767534638682,-300.0,0.00010911,2]
[400417819,1767534638691,-300.0,0.00010911,2]
[400417820,1767534638701,-300.0,0.00010911,2]
[400417821,1767534638711,-300.0,0.00010911,2]
[400417822,1767534638720,-300.0,0.00010911,2]
[400417823,1767534638730,-300.0,0.00010911,2]
[400417824,1767534638739,-300.0,0.00010911,2]
[400417825,1767534638750,-600.0,0.00010911,2]
[400417826,1767534638759,-999.0,0.00010959,2]
[400417827,1767534638768,-963.6270871,0.00010959,2]
[400417828,1767534638778,-500.0,0.00010959,2]
[400417829,1767534638788,-568.45561489,0.00010959,2]
[400417830,1767534638797,-500.0,0.00010959,2]
[400417831,1767534638807,-500.0,0.00010959,2]
[400417832,1767534638817,-500.0,0.00010959,2]
[400417833,1767534638826,-500.0,0.00010959,2]
[400417834,1767534638837,-4107.47934363,0.0001107,2]
[400417835,1767534638846,-200.0,0.00011157,10]
[400417836,1767534638856,-2405.10531393,0.0001116,2]
[400417837,1767534638866,-1456.88284962,0.0001123,2]
[400417838,1767534638875,-30000.0,0.00011234,2]
[400417839,1767534638889,-250.0,0.00011234,2]
[400417840,1767534638899,-250.0,0.00011234,2]
[400417841,1767534638909,-270.00577006,0.00011234,2]
[400417842,1767534638919,-250.0,0.00011234,2]
[400417843,1767534638930,-250.0,0.00011234,2]
[400417844,1767534638940,-250.0,0.00011234,2]
[400417845,1767534638950,-250.0,0.00011234,2]
[400417846,1767534638961,-151.0,0.00011234,2]
[400417847,1767534638971,-250.0,0.00011234,2]
[400417848,1767534638980,-151.0,0.00011234,2]
[400417849,1767534638990,-250.0,0.00011234,2]
[400417850,1767534639000,-151.0,0.00011234,2]
[400417851,1767534639009,-250.0,0.00011234,2]
[400417852,1767534639019,-151.0,0.00011234,2]
[400417853,1767534639029,-250.0,0.00011234,2]
[400417854,1767534639039,-151.0,0.00011234,2]
[400417855,1767534639049,-250.0,0.00011234,2]
[400417856,1767534639058,-151.0,0.00011234,2]
[400417857,1767534639068,-250.0,0.00011234,2]
[400417858,1767534639078,-151.0,0.00011234,2]
[400417859,1767534639087,-250.0,0.00011234,2]
[400417860,1767534639096,-151.0,0.00011234,2]
[400417861,1767534639106,-151.0,0.00011234,2]
[400417862,1767534639115,-151.0,0.00011234,2]
[400417863,1767534639124,-154.59765388,0.00011234,2]
[400417864,1767534639134,-151.0,0.00011234,2]
[400417865,1767534639144,-553.64373807,0.00011234,2]
[400417866,1767534639153,-151.0,0.00011234,2]
[400417867,1767534639163,-2674.60743027,0.00011234,2]
[400417868,1767534639172,-151.0,0.00011234,2]
[400417869,1767534639181,-156.587,0.00011234,2]
[400417870,1767534639191,-151.64128519,0.00011234,2]
[400417871,1767534639200,-500.0,0.00011234,2]
[400417872,1767534639209,-205.4,0.00011234,2]
[400417873,1767534639218,-2405.10531393,0.00011292,2]
[400417874,1767534639228,-712.93186521,0.00011307,2]
[400417875,1767534639237,-155.17137899,0.00011325,2]
[400417876,1767534639246,-234.67111133,0.00011371,2]
[400417877,1767534639256,-155.98604314,0.00011371,2]
[400417878,1767534639264,-755.42209243,0.00011376,2]
[400417879,1767534639274,-228.11699379,0.00011376,2]
[400417880,1767534639283,-373.73200303,0.00011376,2]
[400417881,1767534639291,-253.0,0.00011434,2]
[400417882,1767534639301,-500.0,0.00011508,2]
[400417883,1767534639310,-31110.0,0.00011782,2]
[400417884,1767534639319,-574.12855637,0.00011782,2]
[400417885,1767534639329,-3589.23915768,0.00011834,2]
[400417886,1767534639338,-720.0,0.00012002,2]
[400417887,1767534639347,-1236.2406583,0.00012072,2]
[400417888,1767534639359,-4944.96263321,0.00012072,2]
[400417889,1767534639369,-3683.55945541,0.00012079,2]
[400417890,1767534639378,-191.34983599,0.0001208,2]
[400417891,1767534639387,-420.4838737,0.00012268,2]
[400417892,1767534639397,-151.0,0.000123,2]
[400417893,1767534639406,-444.77,0.00012329,2]
[400417894,1767534639415,-594.6,0.00012329,2]
[400417895,1767534639424,-495.5,0.00012329,2]
[400417896,1767534639433,-412.91,0.00012329,2]
[400417897,1767534639442,-344.09,0.00012329,2]
[400417898,1767534639452,-286.75,0.00012329,2]
[400417899,1767534639461,-238.95,0.00012329,2]
[400417900,1767534639471,-199.13,0.00012329,2]
[400417901,1767534639480,-165.94,0.00012329,2]
[400417902,1767534639490,-829.73,0.00012329,2]
[400417903,1767534639500,-536.87,0.00012329,2]
[400417904,1767534639510,-447.4,0.00012329,2]
[400417905,1767534639520,-372.83,0.00012329,2]
[400417906,1767534639529,-310.69,0.00012329,2]
[400417907,1767534639538,-258.91,0.00012329,2]
[400417908,1767534639548,-215.76,0.00012329,2]
[400417909,1767534639557,-179.8,0.00012329,2]
[400417910,1767534639566,-899.01,0.00012329,2]
[400417911,1767534639575,-32261.07,0.0001233,2]
[400417912,1767534639585,-595.37131296,0.0001233,2]
[400417913,1767534639594,-184.21628105,0.00012339,2]
[400417914,1767534639604,-736.12825906,0.00012339,2]
[400417915,1767534639614,-410.82346877,0.00012463,2]
[400417916,1767534639624,-1643.29387506,0.00012463,2]
[400417917,1767534639633,-3697.41121889,0.00012463,2]
[400417918,1767534639642,-6573.17550024,0.00012463,2]
[400417919,1767534639652,-151.0,0.000125,2]
[400417920,1767534639662,-497.03,0.00012526,2]
[400417921,1767534639671,-264.3735124,0.00012526,2]
[400417922,1767534639680,-159.27050405,0.00012526,2]
[400417923,1767534639690,-151.0,0.000126,2]
[400417924,1767534639699,-151.0,0.000128,2]
[400417925,1767534639709,-151.0,0.000128,2]
[400417926,1767534639719,-1139988.30920098,0.0001287,2]
[400417927,1767534639728,-33454.72959,0.00012878,2]
[400417928,1767534639737,-617.40005154,0.00012878,2]
[400417929,1767534639746,-6682.12054595,0.000129,2]
[400417930,1767534639756,-7137.10260308,0.00013,2]
[400417931,1767534639765,-151.0,0.00013,2]
[400417932,1767534639775,-15000.0,0.00013,2]
[400417933,1767534639785,-864.0,0.00013202,2]
[400417934,1767534639895,-225.15985308,0.00013211,2]
[400417935,1767534639905,-199.99999901,0.0001327,2]
[400417936,1767534639914,-5308.85873653,0.00013272,2]
[400417937,1767534639924,-500.0,0.00013273,2]
[400417938,1767534639934,-500.0,0.00013273,2]
[400417939,1767534639943,-500.0,0.00013273,2]
[400417940,1767534639954,-500.0,0.00013273,2]
[400417941,1767534639964,-500.0,0.00013273,2]
[400417942,1767534639974,-500.0,0.00013273,2]
[400417943,1767534639983,-500.0,0.00013273,2]
[400417944,1767534639993,-500.0,0.00013273,2]
[400417945,1767534640002,-500.0,0.00013273,2]
[400417946,1767534640011,-500.0,0.00013273,2]
[400417947,1767534640021,-500.0,0.00013273,2]
[400417948,1767534640031,-530.08399995,0.00013273,2]
[400417949,1767534640040,-500.0,0.00013273,2]
[400417950,1767534640049,-500.66535863,0.00013273,2]
[400417951,1767534640059,-500.0,0.00013273,2]
[400417952,1767534640068,-500.0,0.00013273,2]
[400417953,1767534640077,-500.0,0.00013273,2]
[400417954,1767534640087,-500.0,0.00013273,2]
[400417955,1767534640096,-500.0,0.00013273,2]
[400417956,1767534640106,-500.0,0.00013273,2]
[400417957,1767534640115,-500.0,0.00013273,2]
[400417958,1767534640124,-500.0,0.00013273,2]
[400417959,1767534640134,-500.0,0.00013273,2]
[400417960,1767534640143,-500.0,0.00013273,2]
[400417961,1767534640152,-500.0,0.00013273,2]
[400417962,1767534640162,-500.0,0.00013273,2]
[400417963,1767534640171,-500.33450546,0.00013273,2]
[400417964,1767534640179,-500.0,0.00013273,2]
[400417965,1767534640189,-520.29648728,0.00013273,2]
[400417966,1767534640198,-500.0,0.00013273,2]
[400417967,1767534640208,-500.0,0.00013273,2]
[400417968,1767534640218,-500.0,0.00013273,2]
[400417969,1767534640227,-500.0,0.00013273,2]
[400417970,1767534640237,-500.0,0.00013273,2]
[400417971,1767534640247,-500.0,0.00013273,2]
[400417973,1767534640256,-159.29284371,0.00013273,2]
[400417975,1767534640266,-500.39596396,0.00013273,2]
[400417977,1767534640275,-500.0,0.00013273,2]
[400417979,1767534640284,-500.0,0.00013273,2]
[400417981,1767534640293,-494.22531754,0.00013273,2]
[400417983,1767534640303,-500.0,0.00013273,2]
[400417985,1767534640312,-500.0,0.00013273,2]
[400417988,1767534640321,-500.0,0.00013273,2]
[400417990,1767534640331,-500.0,0.00013273,2]
[400417992,1767534640341,-500.0,0.00013273,2]
[400417994,1767534640351,-500.87675114,0.00013273,2]
[400417995,1767534640360,-500.78161845,0.00013273,2]
[400417996,1767534640370,-500.0,0.00013273,2]
[400417997,1767534640380,-500.0,0.00013273,2]
[400417998,1767534640389,-500.0,0.00013273,2]
[400417999,1767534640398,-205.55096652,0.00013273,2]
[400418000,1767534640408,-500.0,0.00013273,2]
[400418001,1767534640417,-500.0,0.00013273,2]
[400418002,1767534640427,-500.0,0.00013273,2]
[400418003,1767534640436,-500.0,0.00013273,2]
[400418004,1767534640445,-500.32554023,0.00013273,2]
[400418005,1767534640454,-500.0,0.00013273,2]
[400418006,1767534640464,-210.878448,0.00013273,2]
[400418008,1767534640473,-210.878448,0.00013273,2]
[400418009,1767534640483,-210.878448,0.00013273,2]
[400418010,1767534640492,-210.878448,0.00013273,2]
[400418011,1767534640501,-203.765275,0.00013273,2]
[400418012,1767534640510,-151.0,0.000133,2]
[400418013,1767534640520,-16207.6394392,0.00013426,2]
[400418015,1767534640529,-640.24385345,0.00013426,2]
[400418016,1767534640538,-10000.0,0.0001354,2]
[400418018,1767534640547,-1805.99869679,0.00013667,2]
[400418020,1767534640556,-300.0,0.00013673,2]
[400418021,1767534640565,-1041.66666667,0.00013679,2]
[400418022,1767534640574,-500.0,0.00013698,2]
[400418023,1767534640583,-500.0,0.00013698,2]
[400418024,1767534640593,-241.78088945,0.00013698,2]
[400418025,1767534640602,-463.44106234,0.00013698,2]
[400418026,1767534640611,-500.0,0.00013698,2]
[400418027,1767534640620,-500.0,0.00013698,2]
[400418028,1767534640630,-500.0,0.00013698,2]
[400418029,1767534640639,-500.0,0.00013698,2]
[400418031,1767534640648,-500.0,0.00013698,2]
[400418033,1767534640657,-500.0,0.00013698,2]
[400418035,1767534640666,-500.0,0.00013698,2]
[400418037,1767534640675,-500.0,0.00013698,2]
[400418038,1767534640685,-500.0,0.00013698,2]
[400418040,1767534640694,-500.0,0.00013698,2]
[400418042,1767534640704,-500.0,0.00013698,2]
[400418044,1767534640713,-500.0,0.00013698,2]
[400418046,1767534640722,-276.53041687,0.00013698,2]
[400418048,1767534640731,-500.0,0.00013698,2]
[400418050,1767534640741,-500.0,0.00013698,2]
[400418052,1767534640750,-500.0,0.00013698,2]
[400418054,1767534640759,-500.0,0.00013698,2]
[400418056,1767534640769,-525.39041096,0.00013698,2]
[400418058,1767534640779,-500.0,0.00013698,2]
[400418060,1767534640788,-500.0,0.00013698,2]
[400418062,1767534640797,-500.0,0.00013698,2]
[400418064,1767534640807,-500.0,0.00013698,2]
[400418066,1767534640817,-500.0,0.00013698,2]
[400418068,1767534640827,-500.0,0.00013698,2]
[400418070,1767534640836,-500.0,0.00013698,2]
[400418072,1767534640846,-252.42483345,0.00013698,2]
[400418074,1767534640855,-1000.0,0.00013698,2]
[400418076,1767534640865,-1000.0,0.00013698,2]
[400418078,1767534640875,-1000.0,0.00013698,2]
[400418080,1767534640885,-1000.0,0.00013698,2]
[400418082,1767534640896,-1000.0,0.00013698,2]
[400418084,1767534640905,-1000.0,0.00013698,2]
[400418086,1767534640914,-1000.0,0.00013698,2]
[400418088,1767534640924,-1013.52750033,0.00013698,2]
[400418090,1767534640934,-513.04283332,0.00013698,2]
[400418092,1767534640943,-466.89772029,0.00013698,2]
[400418094,1767534640952,-500.0,0.00013698,2]
[400418096,1767534640963,-500.0,0.00013698,2]
[400418097,1767534640972,-500.0,0.00013698,2]
[400418099,1767534640981,-500.0,0.00013698,2]
[400418101,1767534640991,-500.0,0.00013698,2]
[400418103,1767534641001,-277.25170511,0.00013698,2]
[400418106,1767534641010,-500.0,0.00013699,2]
[400418107,1767534641020,-500.0,0.00013699,2]
[400418109,1767534641030,-500.0,0.00013699,2]
[400418112,1767534641040,-500.0,0.00013699,2]
[400418113,1767534641049,-500.0,0.00013699,2]
[400418115,1767534641058,-500.0,0.00013699,2]
[400418116,1767534641068,-505.8178267,0.00013699,2]
[400418118,1767534641078,-12282.7478979,0.00013699,2]
[400418120,1767534641087,-1000.0,0.00013699,2]
[400418122,1767534641096,-1051.987599,0.00013699,2]
[400418124,1767534641106,-1811.906025,0.00013699,2]
[400418126,1767534641115,-319.429372,0.00013699,2]
[400418128,1767534641125,-319.429372,0.00013699,2]
[400418130,1767534641135,-319.429372,0.00013699,2]
[400418132,1767534641144,-319.429372,0.00013699,2]
[400418134,1767534641153,-151.0,0.00013699,2]
[400418136,1767534641162,-151.0,0.00013699,2]
[400418138,1767534641172,-565.84046336,0.00013699,2]
[400418140,1767534641181,-500.86295152,0.00013699,2]
[400418142,1767534641191,-501.64231058,0.00013699,2]
[400418144,1767534641201,-500.71714379,0.00013699,2]
[400418146,1767534641210,-500.85765138,0.00013699,2]
[400418148,1767534641219,-500.8659362,0.00013699,2]
[400418149,1767534641229,-500.0,0.00013699,2]
[400418151,1767534641238,-501.04423764,0.00013699,2]
[400418154,1767534641248,-501.07709958,0.00013699,2]
[400418155,1767534641258,-500.92020919,0.00013699,2]
[400418157,1767534641268,-500.0,0.00013699,2]
[400418159,1767534641277,-500.73288358,0.00013699,2]
[400418171,1767534641381,-500.73320513,0.00013699,2]
[400418173,1767534641392,-501.56829016,0.00013699,2]
[400418175,1767534641402,-500.76727011,0.00013699,2]
[400418177,1767534641412,-504.37236451,0.00013699,2]
[400418178,1767534641421,-501.23587401,0.00013699,2]
[400418180,1767534641431,-500.0,0.00013699,2]
[400418182,1767534641440,-500.68695717,0.00013699,2]
[400418184,1767534641450,-501.57510488,0.00013699,2]
[400418186,1767534641460,-500.59370123,0.00013699,2]
[400418188,1767534641471,-501.13869568,0.00013699,2]
[400418190,1767534641480,-500.60483179,0.00013699,2]
[400418192,1767534641490,-500.65045485,0.00013699,2]
[400418194,1767534641500,-501.19127842,0.00013699,2]
[400418196,1767534641509,-500.54648237,0.00013699,2]
[400418198,1767534641519,-500.68900305,0.00013699,2]
[400418200,1767534641528,-500.0,0.00013699,2]
[400418202,1767534641537,-500.0,0.00013699,2]
[400418204,1767534641547,-500.86924755,0.00013699,2]
[400418206,1767534641557,-500.63204619,0.00013699,2]
[400418208,1767534641566,-526.06901587,0.00013699,2]
[400418210,1767534641577,-500.0,0.00013699,2]
[400418212,1767534641586,-500.0,0.00013699,2]
[400418214,1767534641595,-500.0,0.00013699,2]
[400418216,1767534641605,-500.0,0.00013699,2]
[400418218,1767534641615,-500.70390691,0.00013699,2]
[400418220,1767534641624,-540.86402726,0.00013699,2]
[400418222,1767534641634,-500.0,0.00013699,2]
[400418224,1767534641643,-500.76143899,0.00013699,2]
[400418226,1767534641653,-500.0,0.00013699,2]
[400418228,1767534641662,-501.17135178,0.00013699,2]
[400418229,1767534641671,-500.0,0.00013699,2]
[400418231,1767534641680,-500.6911085,0.00013699,2]
[400418233,1767534641690,-500.0,0.00013699,2]
[400418235,1767534641699,-500.65442518,0.00013699,2]
[400418237,1767534641708,-500.0,0.00013699,2]
[400418239,1767534641718,-500.84600982,0.00013699,2]
[400418241,1767534641728,-500.74532212,0.00013699,2]
[400418243,1767534641737,-502.04480355,0.00013699,2]
[400418245,1767534641747,-500.0,0.00013699,2]
[400418247,1767534641756,-500.0,0.00013699,2]
[400418249,1767534641766,-254.18853098,0.00013699,2]
[400418251,1767534641775,-500.7233053,0.00013699,2]
[400418252,1767534641785,-500.2666594,0.00013699,2]
[400418254,1767534641795,-500.93963039,0.00013699,2]
[400418256,1767534641804,-500.61401424,0.00013699,2]
[400418258,1767534641814,-343.49392703,0.00013699,2]
[400418260,1767534641823,-500.0,0.00013699,2]
[400418262,1767534641832,-210.878448,0.00013699,2]
[400418264,1767534641842,-210.878448,0.00013699,2]
[400418266,1767534641852,-210.878448,0.00013699,2]
[400418268,1767534641861,-210.878448,0.00013699,2]
[400418270,1767534641871,-500.0,0.00013699,2]
[400418272,1767534641883,-500.0,0.00013699,2]
[400418274,1767534641894,-402.00416541,0.00013699,2]
[400418276,1767534641903,-151.0,0.00013699,2]
[400418278,1767534641913,-151.0,0.00013699,2]
[400418280,1767534641923,-559.85540767,0.00013821,2]
[400418282,1767534641932,-1000.0,0.00013821,2]
[400418284,1767534641941,-1001.10079319,0.00013821,2]
[400418285,1767534641951,-1000.77344969,0.00013821,2]
[400418287,1767534641961,-1000.0,0.00013821,2]